fUST/lending_fUST_20250726
["ID","MTS","AMOUNT","RATE_DAILY","PERIOD"]
[375091565,1753525843024,-788.94,0.0002,2]
[375091568,1753525843034,-460.0,0.0002,2]
[375091570,1753525843043,-460.0,0.0002,2]
[375091572,1753525843053,-888.67,0.0002,2]
[375091574,1753525843062,-460.0,0.0002,2]
[375091576,1753525843071,-480.64,0.0002,2]
[375091578,1753525843081,-460.0,0.0002,2]
[375091580,1753525843091,-407.04041082,0.0002,2]
[375091582,1753525843101,-460.0,0.0002,2]
[375091584,1753525843110,-776.65,0.0002,2]
[375091586,1753525843119,-460.0,0.0002,2]
[375091588,1753525843129,-460.0,0.0002,2]
[375091590,1753525843139,-286.93799333,0.0002,2]
[375091592,1753525843148,-460.0,0.0002,2]
[375091594,1753525843158,-460.0,0.0002,2]
[375091596,1753525843167,-460.0,0.0002,2]
[375091598,1753525843177,-460.0,0.0002,2]
[375091601,1753525843186,-460.0,0.0002,2]
[375091604,1753525843195,-460.0,0.0002,2]
[375091607,1753525843205,-460.0,0.0002,2]
[375091610,1753525843215,-1196.41,0.0002,2]
[375091613,1753525843225,-460.0,0.0002,2]
[375091616,1753525843234,-460.0,0.0002,2]
[375091619,1753525843243,-795.05,0.0002,2]
[375091622,1753525843252,-460.0,0.0002,2]
[375091625,1753525843262,-361.31125099,0.0002,2]
[375091627,1753525843271,-515.93,0.0002,2]
[375091629,1753525843281,-460.0,0.0002,2]
[375091631,1753525843290,-460.0,0.0002,2]
[375091633,1753525843299,-1373.17,0.0002,2]
[375091635,1753525843309,-460.0,0.0002,2]
[375091637,1753525843318,-888.86,0.0002,2]
[375091639,1753525843328,-460.0,0.0002,2]
[375091641,1753525843337,-3132.84,0.0002,2]
[375091643,1753525843346,-2803.07,0.0002,2]
[375091645,1753525843355,-1011.51,0.0002,2]
[375091647,1753525843365,-460.0,0.0002,2]
[375091649,1753525843374,-6574.07,0.0002,2]
[375091651,1753525843383,-460.0,0.0002,2]
[375091653,1753525843393,-460.0,0.0002,2]
[375091655,1753525843402,-460.0,0.0002,2]
[375091657,1753525843416,-2847.84,0.0002,2]
[375091659,1753525843425,-460.0,0.0002,2]
[375091661,1753525843434,-460.0,0.0002,2]
[375091662,1753525843443,-750.83,0.0002,2]
[375091664,1753525843453,-460.0,0.0002,2]
[375091666,1753525843462,-460.0,0.0002,2]
[375091668,1753525843472,-460.0,0.0002,2]
[375091670,1753525843481,-923.31,0.0002,2]
[375091672,1753525843490,-923.58,0.0002,2]
[375091674,1753525843499,-558.61,0.0002,2]
[375091676,1753525843510,-1952.09,0.0002,2]
[375091678,1753525843519,-781.87,0.0002,2]
[375091680,1753525843528,-660.82,0.0002,2]
[375091682,1753525843538,-460.0,0.0002,2]
[375091684,1753525843547,-4334.38,0.0002,2]
[375091686,1753525843557,-460.0,0.0002,2]
[375091688,1753525843567,-460.0,0.0002,2]
[375091690,1753525843576,-460.0,0.0002,2]
[375091692,1753525843585,-521.54,0.0002,2]
[375091694,1753525843594,-806.65,0.0002,2]
[375091696,1753525843603,-460.0,0.0002,2]
[375091698,1753525843612,-1576.58,0.0002,2]
[375091700,1753525843621,-659.4,0.0002,2]
[375091702,1753525843630,-503.68,0.0002,2]
[375091704,1753525843639,-460.0,0.0002,2]
[375091706,1753525843648,-460.0,0.0002,2]
[375091708,1753525843657,-3214.61,0.0002,2]
[375091710,1753525843666,-3725.58,0.0002,2]
[375091712,1753525843678,-2522.75,0.0002,2]
[375091713,1753525843687,-460.0,0.0002,2]
[375091715,1753525843697,-460.0,0.0002,2]
[375091717,1753525843706,-460.0,0.0002,2]
[375091719,1753525843716,-765.65,0.0002,2]
[375091721,1753525843725,-460.0,0.0002,2]
[375091723,1753525843734,-807.94,0.0002,2]
[375091725,1753525843744,-3706.11,0.0002,2]
[375091727,1753525843753,-609.3,0.0002,2]
[375091729,1753525843763,-565.49,0.0002,2]
[375091731,1753525843773,-460.0,0.0002,2]
[375091733,1753525843782,-460.0,0.0002,2]
[375091735,1753525843791,-10098.81,0.0002,2]
[375091737,1753525843800,-1003.72,0.0002,2]
[375091739,1753525843809,-160.0,0.0002,3]
[375091741,1753525843819,-672.93,0.0002,2]
[375091743,1753525843827,-595.26246521,0.0002,2]
[375091745,1753525843837,-460.0,0.0002,2]
[375091747,1753525843846,-630.28,0.0002,2]
[375091749,1753525843855,-354.62158023,0.0002,2]
[375091751,1753525843864,-2161.97,0.0002,2]
[375091753,1753525843873,-460.0,0.0002,2]
[375091755,1753525843883,-501.04,0.0002,2]
[375091757,1753525843893,-1854.17,0.0002,2]
[375091759,1753525843902,-2962.14,0.0002,2]
[375091761,1753525843911,-637.64,0.0002,2]
[375091763,1753525843920,-960.38,0.0002,2]
[375091765,1753525843930,-1624.2,0.0002,2]
[375091767,1753525843939,-516.27,0.0002,2]
[375091769,1753525843949,-598.65,0.0002,2]
[375091771,1753525843959,-2165.96,0.0002,2]
[375091773,1753525843968,-460.0,0.0002,2]
[375091775,1753525843977,-303.59129076,0.0002,2]
[375091777,1753525843986,-460.0,0.0002,2]
[375091780,1753525843995,-703.17,0.0002,2]
[375091782,1753525844005,-964.12,0.0002,2]
[375091784,1753525844013,-460.0,0.0002,2]
[375091786,1753525844023,-595.75,0.0002,2]
[375091788,1753525844032,-474.2,0.0002,2]
[375091789,1753525844042,-287.23,0.00020075,2]
[375091791,1753525844051,-317.0130505,0.00020164,2]
[375091793,1753525844061,-166.63171,0.00020187,2]
[375091795,1753525844070,-2157.0,0.00020199,2]
[375091797,1753525844079,-969.0,0.00020199,2]
[375091799,1753525844089,-421.487,0.00020199,2]
[375091801,1753525844099,-1500.0,0.00020268,2]
[375091803,1753525844108,-509.51,0.00020273,2]
[375091805,1753525844117,-672.54,0.00020273,2]
[375091808,1753525844127,-460.0,0.00020273,2]
[375091810,1753525844137,-460.0,0.00020273,2]
[375091812,1753525844146,-424.61983791,0.00020273,2]
[375091814,1753525844155,-460.0,0.00020273,2]
[375091816,1753525844164,-465.93139793,0.00020273,2]
[375091817,1753525844174,-460.0,0.00020273,2]
[375091819,1753525844184,-508.61,0.00020273,2]
[375091821,1753525844193,-460.0,0.00020273,2]
[375091823,1753525844202,-460.0,0.00020273,2]
[375091825,1753525844211,-460.0,0.00020273,2]
[375091827,1753525844221,-788.94,0.00020273,2]
[375091829,1753525844230,-460.0,0.00020273,2]
[375091831,1753525844239,-460.0,0.00020273,2]
[375091833,1753525844248,-888.67,0.00020273,2]
[375091835,1753525844257,-460.0,0.00020273,2]
[375091837,1753525844267,-480.64,0.00020273,2]
[375091839,1753525844276,-460.0,0.00020273,2]
[375091841,1753525844285,-460.0,0.00020273,2]
[375091843,1753525844295,-776.65,0.00020273,2]
[375091845,1753525844305,-460.0,0.00020273,2]
[375091847,1753525844314,-460.0,0.00020273,2]
[375091849,1753525844324,-460.0,0.00020273,2]
[375091851,1753525844334,-460.0,0.00020273,2]
[375091853,1753525844343,-460.0,0.00020273,2]
[375091855,1753525844353,-460.0,0.00020273,2]
[375091857,1753525844362,-460.0,0.00020273,2]
[375091859,1753525844372,-460.0,0.00020273,2]
[375091861,1753525844381,-460.0,0.00020273,2]
[375091863,1753525844391,-1196.41,0.00020273,2]
[375091865,1753525844400,-460.0,0.00020273,2]
[375091867,1753525844411,-460.0,0.00020273,2]
[375091869,1753525844420,-795.05,0.00020273,2]
[375091871,1753525844430,-460.0,0.00020273,2]
[375091873,1753525844439,-515.93,0.00020273,2]
[375091875,1753525844449,-460.0,0.00020273,2]
[375091877,1753525844459,-460.0,0.00020273,2]
[375091879,1753525844469,-1373.17,0.00020273,2]
[375091881,1753525844480,-460.0,0.00020273,2]
[375091883,1753525844489,-888.86,0.00020273,2]
[375091885,1753525844498,-460.0,0.00020273,2]
[375091887,1753525844507,-3132.84,0.00020273,2]
[375091889,1753525844516,-2803.07,0.00020273,2]
[375091891,1753525844526,-1011.51,0.00020273,2]
[375091902,1753525844624,-460.0,0.00020273,2]
[375091904,1753525844634,-6574.07,0.00020273,2]
[375091906,1753525844643,-460.0,0.00020273,2]
[375091908,1753525844652,-460.0,0.00020273,2]
[375091910,1753525844662,-460.0,0.00020273,2]
[375091912,1753525844671,-2847.84,0.00020273,2]
[375091914,1753525844681,-460.0,0.00020273,2]
[375091916,1753525844690,-460.0,0.00020273,2]
[375091918,1753525844700,-750.83,0.00020273,2]
[375091920,1753525844709,-460.0,0.00020273,2]
[375091922,1753525844718,-460.0,0.00020273,2]
[375091924,1753525844727,-460.0,0.00020273,2]
[375091926,1753525844736,-923.31,0.00020273,2]
[375091928,1753525844746,-923.58,0.00020273,2]
[375091930,1753525844756,-558.61,0.00020273,2]
[375091932,1753525844766,-1952.09,0.00020273,2]
[375091934,1753525844776,-781.87,0.00020273,2]
[375091936,1753525844786,-660.82,0.00020273,2]
[375091938,1753525844795,-460.0,0.00020273,2]
[375091940,1753525844805,-4334.38,0.00020273,2]
[375091942,1753525844815,-425.74184596,0.00020273,2]
[375091944,1753525844824,-460.0,0.00020273,2]
[375091946,1753525844834,-460.0,0.00020273,2]
[375091948,1753525844843,-521.54,0.00020273,2]
[375091950,1753525844852,-806.65,0.00020273,2]
[375091952,1753525844862,-460.0,0.00020273,2]
[375091954,1753525844871,-1576.58,0.00020273,2]
[375091956,1753525844880,-659.4,0.00020273,2]
[375091957,1753525844889,-503.68,0.00020273,2]
[375091959,1753525844899,-460.0,0.00020273,2]
[375091961,1753525844908,-460.0,0.00020273,2]
[375091963,1753525844919,-3214.61,0.00020273,2]
[375091965,1753525844928,-3725.58,0.00020273,2]
[375091967,1753525844938,-2522.75,0.00020273,2]
[375091969,1753525844947,-460.0,0.00020273,2]
[375091971,1753525844957,-460.0,0.00020273,2]
[375091973,1753525844967,-299.99209885,0.00020273,2]
[375091975,1753525844978,-765.65,0.00020273,2]
[375091977,1753525844987,-460.0,0.00020273,2]
[375091979,1753525844996,-807.94,0.00020273,2]
[375091981,1753525845005,-3706.11,0.00020273,2]
[375091983,1753525845015,-609.3,0.00020273,2]
[375091985,1753525845024,-565.49,0.00020273,2]
[375091987,1753525845034,-460.0,0.00020273,2]
[375091989,1753525845043,-460.0,0.00020273,2]
[375091991,1753525845053,-10098.81,0.00020273,2]
[375091993,1753525845062,-1003.72,0.00020273,2]
[375091995,1753525845071,-672.93,0.00020273,2]
[375091997,1753525845080,-500.63736179,0.00020273,2]
[375091999,1753525845089,-630.28,0.00020273,2]
[375092001,1753525845098,-2161.97,0.00020273,2]
[375092003,1753525845107,-460.0,0.00020273,2]
[375092005,1753525845116,-501.04,0.00020273,2]
[375092007,1753525845126,-1854.17,0.00020273,2]
[375092009,1753525845135,-2962.14,0.00020273,2]
[375092011,1753525845144,-637.64,0.00020273,2]
[375092013,1753525845154,-960.38,0.00020273,2]
[375092015,1753525845163,-1624.2,0.00020273,2]
[375092016,1753525845172,-516.27,0.00020273,2]
[375092018,1753525845182,-598.65,0.00020273,2]
[375092020,1753525845191,-2165.96,0.00020273,2]
[375092022,1753525845201,-460.0,0.00020273,2]
[375092024,1753525845210,-460.0,0.00020273,2]
[375092026,1753525845220,-703.17,0.00020273,2]
[375092028,1753525845229,-964.12,0.00020273,2]
[375092030,1753525845239,-460.0,0.00020273,2]
[375092032,1753525845248,-595.75,0.00020273,2]
[375092034,1753525845258,-474.2,0.00020273,2]
[375092036,1753525845267,-520.0,0.00020403,2]
[375092038,1753525845277,-520.0,0.00020418,2]
[375092040,1753525845286,-295.6,0.00020441,3]
[375092042,1753525845296,-161.69408081,0.00020447,2]
[375092044,1753525845305,-4058.31346922,0.00020477,2]
[375092046,1753525845314,-203.0,0.00020533,2]
[375092048,1753525845324,-231.28369723,0.00020535,2]
[375092050,1753525845333,-509.51,0.00020547,2]
[375092052,1753525845343,-672.54,0.00020547,2]
[375092054,1753525845352,-460.0,0.00020547,2]
[375092056,1753525845361,-460.0,0.00020547,2]
[375092058,1753525845370,-460.0,0.00020547,2]
[375092060,1753525845379,-460.0,0.00020547,2]
[375092062,1753525845388,-508.61,0.00020547,2]
[375092064,1753525845398,-460.0,0.00020547,2]
[375092066,1753525845409,-460.0,0.00020547,2]
[375092068,1753525845419,-460.0,0.00020547,2]
[375092070,1753525845427,-788.94,0.00020547,2]
[375092071,1753525845437,-264.66,0.00020547,2]
[375092073,1753525845446,-460.0,0.00020547,2]
[375092075,1753525845456,-888.67,0.00020547,2]
[375092077,1753525845465,-460.0,0.00020547,2]
[375092079,1753525845475,-480.64,0.00020547,2]
[375092081,1753525845484,-460.0,0.00020547,2]
[375092083,1753525845493,-460.0,0.00020547,2]
[375092085,1753525845502,-776.65,0.00020547,2]
[375092087,1753525845511,-460.0,0.00020547,2]
[375092089,1753525845521,-460.0,0.00020547,2]
[375092091,1753525845530,-460.0,0.00020547,2]
[375092093,1753525845539,-460.0,0.00020547,2]
[375092095,1753525845548,-384.11226119,0.00020547,2]
[375092097,1753525845558,-460.0,0.00020547,2]
[375092099,1753525845566,-460.0,0.00020547,2]
[375092101,1753525845575,-460.0,0.00020547,2]
[375092103,1753525845585,-460.0,0.00020547,2]
[375092105,1753525845594,-1196.41,0.00020547,2]
[375092107,1753525845603,-470.19219384,0.00020547,2]
[375092109,1753525845613,-296.12812538,0.00020547,2]
[375092111,1753525845622,-460.0,0.00020547,2]
[375092113,1753525845631,-795.05,0.00020547,2]
[375092115,1753525845641,-515.93,0.00020547,2]
[375092117,1753525845650,-460.0,0.00020547,2]
[375092119,1753525845659,-460.0,0.00020547,2]
[375092121,1753525845668,-1373.17,0.00020547,2]
[375092123,1753525845678,-460.0,0.00020547,2]
[375092125,1753525845687,-888.86,0.00020547,2]
[375092127,1753525845696,-460.0,0.00020547,2]
[375092128,1753525845706,-3132.84,0.00020547,2]
[375092131,1753525845716,-2803.07,0.00020547,2]
[375092133,1753525845725,-1011.51,0.00020547,2]
[375092134,1753525845734,-460.0,0.00020547,2]
[375092136,1753525845744,-6574.07,0.00020547,2]
[375092138,1753525845756,-460.0,0.00020547,2]
[375092140,1753525845766,-460.0,0.00020547,2]
[375092143,1753525845776,-460.0,0.00020547,2]
[375092144,1753525845785,-2847.84,0.00020547,2]
[375092147,1753525845795,-460.0,0.00020547,2]
[375092149,1753525845805,-460.0,0.00020547,2]
[375092151,1753525845814,-750.83,0.00020547,2]
[375092152,1753525845823,-460.0,0.00020547,2]
[375092154,1753525845834,-460.0,0.00020547,2]
[375092156,1753525845843,-923.31,0.00020547,2]
[375092158,1753525845852,-529.55642539,0.00020547,2]
[375092160,1753525845862,-923.58,0.00020547,2]
[375092162,1753525845872,-558.61,0.00020547,2]
[375092164,1753525845881,-1952.09,0.00020547,2]
[375092166,1753525845891,-781.87,0.00020547,2]
[375092168,1753525845901,-660.82,0.00020547,2]
[375092170,1753525845911,-460.0,0.00020547,2]
[375092172,1753525845920,-4334.38,0.00020547,2]
[375092174,1753525845930,-460.0,0.00020547,2]
[375092177,1753525845939,-460.0,0.00020547,2]
[375092179,1753525845949,-521.54,0.00020547,2]
[375092181,1753525845958,-806.65,0.00020547,2]
[375092183,1753525845967,-460.0,0.00020547,2]
[375092185,1753525845976,-1576.58,0.00020547,2]
[375092187,1753525845986,-659.4,0.00020547,2]
[375092189,1753525845995,-503.68,0.00020547,2]
[375092191,1753525846004,-3214.61,0.00020547,2]
[375092193,1753525846014,-3725.58,0.00020547,2]
[375092194,1753525846023,-2522.75,0.00020547,2]
[375092196,1753525846032,-460.0,0.00020547,2]
[375092198,1753525846041,-460.0,0.00020547,2]
[375092200,1753525846051,-765.65,0.00020547,2]
[375092202,1753525846060,-460.0,0.00020547,2]
[375092204,1753525846069,-807.94,0.00020547,2]
[375092207,1753525846078,-3706.11,0.00020547,2]
[375092210,1753525846087,-356.19075253,0.00020547,2]
[375092226,1753525846234,-253.10924747,0.00020547,2]
[375092228,1753525846244,-565.49,0.00020547,2]
[375092230,1753525846253,-460.0,0.00020547,2]
[375092232,1753525846263,-460.0,0.00020547,2]
[375092234,1753525846272,-7640.92694324,0.00020547,2]
[375092272,1753525846655,-1129.91999999,0.00020547,2]
[375092285,1753525846786,255.17762864,0.00017,2]
[375092289,1753525846807,104.82237136,0.00017,2]
[375098120,1753526495653,202.0,0.00025999,120]
[375098122,1753526504040,166.257108,0.00013699,2]
[375098179,1753527032725,-338.81161482,0.00019078,2]
[375098230,1753527033238,-14.98232027,0.00019166,2]
[375098232,1753527033252,-208.04921033,0.00019166,2]
[375098234,1753527033263,-300.0,0.00019172,2]
[375098236,1753527033272,-1200.0,0.00019172,2]
[375098238,1753527033282,-500.0,0.00019172,2]
[375098240,1753527033293,-500.0,0.00019172,2]
[375098242,1753527033303,-272.79349998,0.00019172,2]
[375098244,1753527033313,-500.0,0.00019172,2]
[375098246,1753527033323,-541.79117022,0.00019172,2]
[375098248,1753527033336,-611.82383478,0.00019172,2]
[375098250,1753527033347,-500.0,0.00019172,2]
[375098251,1753527033356,-500.0,0.00019172,2]
[375098253,1753527033366,-500.0,0.00019172,2]
[375098255,1753527033376,-500.0,0.00019172,2]
[375098257,1753527033385,-500.0,0.00019172,2]
[375098260,1753527033395,-500.0,0.00019172,2]
[375098263,1753527033405,-500.0,0.00019172,2]
[375098266,1753527033414,-500.0,0.00019172,2]
[375098269,1753527033423,-500.0,0.00019172,2]
[375098272,1753527033433,-500.0,0.00019172,2]
[375098275,1753527033443,-500.0,0.00019172,2]
[375098278,1753527033453,-500.0,0.00019172,2]
[375098281,1753527033463,-500.0,0.00019172,2]
[375098284,1753527033473,-500.0,0.00019172,2]
[375098287,1753527033482,-551.63932083,0.00019172,2]
[375098290,1753527033492,-500.0,0.00019172,2]
[375098293,1753527033503,-500.0,0.00019172,2]
[375098297,1753527033513,-500.0,0.00019172,2]
[375098300,1753527033523,-189.69504565,0.00019172,2]
[375098303,1753527033533,-500.0,0.00019172,2]
[375098306,1753527033544,-505.53180579,0.00019172,2]
[375098309,1753527033554,-500.0,0.00019172,2]
[375098312,1753527033564,-500.0,0.00019172,2]
[375098315,1753527033575,-500.0,0.00019172,2]
[375098318,1753527033584,-500.0,0.00019172,2]
[375098320,1753527033594,-500.0,0.00019172,2]
[375098322,1753527033603,-500.0,0.00019173,2]
[375098324,1753527033612,-500.57306829,0.00019173,2]
[375098326,1753527033621,-500.0,0.00019173,2]
[375098328,1753527033631,-500.0,0.00019173,2]
[375098329,1753527033640,-500.0,0.00019173,2]
[375098331,1753527033650,-460.0,0.00019178,2]
[375098333,1753527033660,-460.0,0.00019178,2]
[375098335,1753527033670,-461.83340854,0.00019178,2]
[375098337,1753527033679,-460.0,0.00019178,2]
[375098338,1753527033689,-460.0,0.00019178,2]
[375098339,1753527033700,-599.73709783,0.00019178,2]
[375098340,1753527033710,-1000.0,0.00019178,2]
[375098341,1753527033720,-592.76727525,0.00019178,2]
[375098342,1753527033730,-461.93152296,0.00019178,2]
[375098343,1753527033740,-460.0,0.00019178,2]
[375098344,1753527033749,-460.0,0.00019178,2]
[375098345,1753527033759,-460.0,0.00019178,2]
[375098346,1753527033768,-260.0,0.00019178,2]
[375098347,1753527033777,-464.21847276,0.00019178,2]
[375098348,1753527033786,-460.0,0.00019178,2]
[375098349,1753527033796,-460.0,0.00019178,2]
[375098350,1753527033805,-460.0,0.00019178,2]
[375098351,1753527033816,-460.0,0.00019178,2]
[375098352,1753527033825,-460.0,0.00019178,2]
[375098353,1753527033836,-458.55034372,0.00019178,2]
[375098354,1753527033845,-460.0,0.00019178,2]
[375098355,1753527033855,-466.18940997,0.00019178,2]
[375098356,1753527033865,-460.0,0.00019178,2]
[375098357,1753527033875,-264.39802173,0.00019178,2]
[375098358,1753527033884,-461.17252775,0.00019178,2]
[375098359,1753527033894,-462.56908952,0.00019178,2]
[375098360,1753527033903,-462.12762289,0.00019178,2]
[375098361,1753527033913,-462.66433528,0.00019178,2]
[375098362,1753527033923,-460.0,0.00019178,2]
[375098363,1753527033933,-461.22322508,0.00019178,2]
[375098364,1753527033943,-460.0,0.00019178,2]
[375098365,1753527033952,-460.0,0.00019178,2]
[375098366,1753527033962,-460.0,0.00019178,2]
[375098367,1753527033971,-460.0,0.00019178,2]
[375098368,1753527033981,-460.0,0.00019178,2]
[375098369,1753527033991,-460.0,0.00019178,2]
[375098370,1753527034000,-460.0,0.00019178,2]
[375098371,1753527034010,-460.0,0.00019178,2]
[375098372,1753527034019,-195.81980834,0.00019178,2]
[375098373,1753527034029,-460.0,0.00019178,2]
[375098374,1753527034038,-460.0,0.00019178,2]
[375098376,1753527034048,-188.23009452,0.00019178,2]
[375098377,1753527034058,-460.0,0.00019178,2]
[375098378,1753527034067,-462.99773497,0.00019178,2]
[375098379,1753527034076,-460.0,0.00019178,2]
[375098381,1753527034086,-460.0,0.00019178,2]
[375098383,1753527034096,-460.0,0.00019178,2]
[375098385,1753527034106,-460.0,0.00019178,2]
[375098387,1753527034116,-460.0,0.00019178,2]
[375098389,1753527034126,-460.0,0.00019178,2]
[375098390,1753527034136,-460.0,0.00019178,2]
[375098393,1753527034146,-460.0,0.00019178,2]
[375098395,1753527034156,-460.0,0.00019178,2]
[375098396,1753527034166,-460.0,0.00019178,2]
[375098399,1753527034176,-460.0,0.00019178,2]
[375098400,1753527034187,-460.0,0.00019178,2]
[375098403,1753527034197,-172.69648233,0.00019178,2]
[375098404,1753527034208,-460.0,0.00019178,2]
[375098407,1753527034218,-460.0,0.00019178,2]
[375098409,1753527034229,-460.0,0.00019178,2]
[375098410,1753527034239,-460.0,0.00019178,2]
[375098414,1753527034260,-460.0,0.00019178,2]
[375098416,1753527034270,-460.0,0.00019178,2]
[375098418,1753527034280,-460.0,0.00019178,2]
[375098420,1753527034289,-460.0,0.00019178,2]
[375098422,1753527034299,-460.0,0.00019178,2]
[375098424,1753527034309,-460.0,0.00019178,2]
[375098426,1753527034319,-460.0,0.00019178,2]
[375098428,1753527034329,-460.0,0.00019178,2]
[375098430,1753527034341,-460.0,0.00019178,2]
[375098432,1753527034351,-467.23,0.00019178,2]
[375098434,1753527034361,-531.37,0.00019178,2]
[375098436,1753527034370,-502.06034188,0.00019178,2]
[375098438,1753527034379,-460.0,0.00019178,2]
[375098440,1753527034390,-460.0,0.00019178,2]
[375098442,1753527034399,-156.70070329,0.00019178,2]
[375098443,1753527034409,-460.0,0.00019178,2]
[375098446,1753527034419,-460.0,0.00019178,2]
[375098447,1753527034429,-460.0,0.00019178,2]
[375098449,1753527034439,-460.0,0.00019178,2]
[375098451,1753527034449,-460.0,0.00019178,2]
[375098453,1753527034461,-311.6957627,0.00019178,2]
[375098455,1753527034471,-460.0,0.00019178,2]
[375098457,1753527034480,-460.0,0.00019178,2]
[375098459,1753527034489,-460.0,0.00019178,2]
[375098461,1753527034499,-460.0,0.00019178,2]
[375098463,1753527034509,-460.51848876,0.00019178,2]
[375098465,1753527034519,-460.0,0.00019178,2]
[375098467,1753527034529,-460.89830046,0.00019178,2]
[375098469,1753527034538,-460.0,0.00019178,2]
[375098471,1753527034548,-460.0,0.00019178,2]
[375098473,1753527034558,-460.0,0.00019178,2]
[375098475,1753527034568,-460.74030911,0.00019178,2]
[375098477,1753527034579,-460.0,0.00019178,2]
[375098479,1753527034589,-460.0,0.00019178,2]
[375098481,1753527034598,-460.77261397,0.00019178,2]
[375098483,1753527034608,-460.0,0.00019178,2]
[375098485,1753527034618,-460.0,0.00019178,2]
[375098487,1753527034627,-797.93,0.00019178,2]
[375098489,1753527034636,-460.0,0.00019178,2]
[375098491,1753527034645,-460.0,0.00019178,2]
[375098492,1753527034655,-684.19,0.00019178,2]
[375098494,1753527034664,-460.0,0.00019178,2]
[375098496,1753527034674,-511.73837375,0.00019178,2]
[375098498,1753527034684,-460.0,0.00019178,2]
[375098500,1753527034694,-460.0,0.00019178,2]
[375098502,1753527034703,-460.0,0.00019178,2]
[375098504,1753527034714,-460.0,0.00019178,2]
[375098506,1753527034724,-465.86622321,0.00019178,2]
[375098507,1753527034734,-460.0,0.00019178,2]
[375098508,1753527034743,-460.0,0.00019178,2]
[375098509,1753527034753,-460.30411226,0.00019178,2]
[375098510,1753527034762,-460.0,0.00019178,2]
[375098511,1753527034773,-460.0,0.00019178,2]
[375098512,1753527034782,-460.0,0.00019178,2]
[375098513,1753527034792,-460.0,0.00019178,2]
[375098514,1753527034801,-461.46360409,0.00019178,2]
[375098515,1753527034811,-460.0,0.00019178,2]
[375098516,1753527034820,-460.0,0.00019178,2]
[375098517,1753527034830,-460.0,0.00019178,2]
[375098518,1753527034839,-460.0,0.00019178,2]
[375098519,1753527034849,-460.48985714,0.00019178,2]
[375098520,1753527034859,-460.0,0.00019178,2]
[375098521,1753527034869,-573.43251099,0.00019178,2]
[375098522,1753527034879,-460.0,0.00019178,2]
[375098523,1753527034888,-124.08784347,0.00019178,2]
[375098524,1753527034906,-335.91215653,0.00019178,2]
[375098525,1753527034915,-460.0,0.00019178,2]
[375098526,1753527034925,-460.0,0.00019178,2]
[375098527,1753527034935,-460.58838973,0.00019178,2]
[375098528,1753527034944,-460.0,0.00019178,2]
[375098529,1753527034954,-460.0,0.00019178,2]